bitfinex/quotes_ETHUSD_20250529
["timestamp","ask_amount","ask_price","bid_price","bid_amount"]
[1748548934756,0.55,2656.4,2656.3,0.34278303]
[1748548936566,0.55,2656.4,2656.3,0.46079752]
[1748548937773,0.55,2656.4,2656.3,0.34278303]
[1748548938112,1.301,2656.5,2656.3,0.34278303]
[1748548938292,1.301,2656.5,2656.4,0.15624199]
[1748548938621,1.851,2656.5,2656.3,0.34278303]
[1748548938773,1.851,2656.5,2654.6,10.0]
[1748548938975,2.15114,2656.5,2656.4,0.15836241]
[1748548939602,2.15114,2656.5,2655.3,2.41645199]
[1748548939812,2.15114,2656.5,2656.4,0.15842243]
[1748548940177,2.15114,2656.5,2655.3,2.41645199]
[1748548940374,1.851,2656.5,2655.3,1.89004103]
[1748548940767,1.851,2656.5,2656.4,0.15837657]
[1748548941631,0.55,2656.4,2656.3,0.15837657]
[1748548941909,0.55,2656.4,2655.4,0.4391]
[1748548942522,0.55,2656.4,2655.5,0.66666667]
[1748548942939,0.55,2656.4,2656.3,0.15846725]
[1748548945432,0.55,2656.4,2656.2,0.15846725]
[1748548945785,0.55,2656.4,2655.5,0.66666667]
[1748548945786,0.55,2656.4,2656.1,0.15846725]
[1748548946512,0.55,2656.4,2656.2,0.15846725]
[1748548947299,1.1504,2656.7,2656.3,0.11881476]
[1748548947498,1.1504,2656.7,2656.5,0.11881476]
[1748548947731,0.55,2656.6,2656.5,0.11881476]
[1748548949349,0.55,2656.6,2656.4,0.11881476]
[1748548949507,0.55,2656.6,2656.3,0.27728201]
[1748548949698,0.55,2656.6,2656.3,0.11881476]
[1748548949898,0.55,2656.5,2656.2,0.11881476]
[1748548950093,0.55,2656.5,2656.2,0.23764597]
[1748548950717,0.55,2656.5,2656.2,0.11883121]
[1748548951295,0.55,2656.5,2656.3,0.11883121]
[1748548951507,0.55,2656.5,2656.2,0.11883121]
[1748548951740,0.55,2656.5,2656.3,0.11883121]
[1748548951951,0.55,2656.5,2656.2,0.11883121]
[1748548952243,0.55,2656.5,2656.3,0.11883121]
[1748548952398,1.253,2656.5,2656.4,0.11883121]
[1748548952594,1.253,2656.5,2656.3,0.15846725]
[1748548952793,1.253,2656.5,2655.6,0.31715257]
[1748548952794,1.253,2656.5,2656.4,0.15846725]
[1748548953003,1.253,2656.5,2656.1,0.4391]
[1748548953258,0.55,2656.4,2656.1,0.4391]
[1748548954217,0.55,2656.4,2655.7,0.75625257]
[1748548954549,1.253,2656.5,2655.7,0.75625257]
[1748548954550,0.55,2656.2,2656.0,0.15845621]
[1748548955198,1.1525,2656.6,2656.0,0.15845621]
[1748548955541,1.39305,2656.6,2656.0,0.15845621]
[1748548955716,0.55,2656.5,2656.0,0.15845621]
[1748548955916,0.55,2656.5,2656.1,0.15845621]
[1748548956956,0.55,2656.5,2656.4,0.15845621]
[1748548957098,0.55,2656.5,2655.9,0.4391]
[1748548957304,0.55,2656.6,2655.9,0.4391]
[1748548957537,0.55,2656.6,2656.5,0.15831805]
[1748548958052,0.55,2656.6,2655.9,0.4391]
[1748548958264,0.55,2656.6,2655.9,0.75625257]
[1748548958842,1.253,2656.7,2655.9,0.75625257]
[1748548958843,1.253,2656.7,2656.0,0.31715257]
[1748548959044,1.253,2656.7,2656.1,0.31715257]
[1748548959197,0.55,2656.6,2656.1,0.31715257]
[1748548959401,1.253,2656.7,2656.1,0.31715257]
[1748548959825,0.55,2656.6,2656.1,0.31715257]
[1748548960445,1.668,2656.6,2656.1,0.31715257]
[1748548960616,0.55,2656.4,2656.1,0.31715257]
[1748548961153,0.55,2656.4,2655.7,0.31715257]
[1748548961909,0.55,2656.4,2655.2,1.88859421]
[1748548962117,0.55,2656.4,2655.2,6.40328682]
[1748548964029,0.55,2656.4,2655.3,10.0]
[1748548964228,0.55,2656.4,2656.3,0.15844861]
[1748548964446,0.74601,2656.4,2656.3,0.15844861]
[1748548964944,0.74601,2656.4,2656.2,0.15844861]
[1748548965506,0.74601,2656.4,2652.5,1.23688035]
[1748548965507,0.55,2656.2,2656.0,0.15844861]
[1748548965922,0.55,2656.2,2656.1,0.1187111]
[1748548966726,0.55,2656.2,2656.0,0.1187111]
[1748548967457,0.55,2656.2,2656.0,0.11869139]
[1748548967782,0.55,2656.2,2655.9,0.11869139]
[1748548968013,0.55,2656.3,2655.9,0.11869139]
[1748548968211,0.55,2656.3,2655.7,0.11869139]
[1748548968212,0.55,2656.0,2655.7,0.11869139]
[1748548968511,0.55,2656.0,2655.6,0.27716806]
[1748548968651,0.55,2656.0,2655.6,0.11871945]
[1748548968837,0.55,2656.0,2655.5,0.11871945]
[1748548969563,0.55,2656.0,2655.6,0.11871945]
[1748548969738,0.55,2656.0,2655.5,0.11871945]
[1748548971093,0.55,2656.0,2654.3,4.51626444]
[1748548971094,4.51949321,2655.1,2653.8,0.39589708]
[1748548971296,4.51949321,2655.1,2652.5,1.88859421]
[1748548971297,0.55,2654.3,2653.2,0.39589708]
[1748548971477,0.55,2654.1,2652.7,0.39589708]
[1748548971788,0.55,2654.1,2652.6,1.88859421]
[1748548972193,0.55,2654.1,2652.6,2.20483823]
[1748548972345,0.55,2654.1,2653.1,4.51868437]
[1748548972764,0.55,2654.1,2653.0,1.88859421]
[1748548972982,0.55,2654.1,2652.8,1.206]
[1748548972983,1.1457,2654.9,2653.4,1.88859421]
[1748548973185,1.46020553,2654.9,2653.3,0.6]
[1748548973491,1.46020553,2654.9,2653.4,1.206]
[1748548973693,1.46020553,2654.9,2653.4,3.09459421]
[1748548973851,1.46020553,2654.9,2653.5,4.51746596]
[1748548974185,0.55,2654.8,2653.5,14.51746596]
[1748548974390,0.31450553,2654.9,2653.7,4.51746596]
[1748548974689,0.31450553,2654.9,2653.8,6.40606017]
[1748548974892,0.55,2654.9,2653.9,0.64060602]
[1748548975046,0.36019206,2655.0,2653.9,0.64060602]
[1748548975477,0.36019206,2655.0,2654.2,6.40501056]
[1748548975680,0.36019206,2655.0,2654.2,7.61101056]
[1748548976901,0.36019206,2655.0,2654.4,10.0]
[1748548977081,0.36019206,2655.0,2654.5,0.4471369]
[1748548977898,0.36019206,2655.0,2654.4,10.0]
[1748548977899,0.55,2654.9,2653.9,0.31624402]
[1748548978100,0.55,2654.9,2654.7,0.6]
[1748548978602,0.55,2654.9,2653.7,1.206]
[1748548979146,0.55,2654.9,2653.8,4.51714911]
[1748548979995,0.55,2654.9,2653.7,15.72314911]
[1748548980189,0.55,2654.9,2653.8,10.0]
[1748548980392,1.6303,2654.9,2653.8,10.0]
[1748548980760,1.6303,2654.9,2653.7,15.72314911]
[1748548981162,0.36019206,2655.0,2653.7,15.72314911]
[1748548981163,0.36019206,2655.0,2654.0,1.88859421]
[1748548981370,0.36019206,2655.0,2654.1,4.70518945]
[1748548981567,0.36019206,2655.0,2654.1,0.18885942]
[1748548981767,0.55,2654.9,2654.1,0.18885942]
[1748548983050,1.063,2654.8,2654.3,0.6]
[1748548983467,0.55,2654.7,2654.3,0.6]
[1748548984256,1.063,2654.8,2654.3,0.6]
[1748548984530,0.55,2654.9,2654.3,0.6]
[1748548984531,0.55,2654.4,2654.3,0.6]
[1748548984663,1.613,2654.4,2654.3,0.6]
[1748548985060,1.613,2654.4,2653.0,1.206]
[1748548986350,1.063,2654.4,2653.4,4.51819801]
[1748548986731,1.063,2654.9,2653.6,4.51819801]
[1748548986983,0.55,2654.8,2653.6,4.51819801]
[1748548987118,1.063,2654.9,2653.5,4.51819801]
[1748548987319,1.063,2654.9,2653.6,0.4518198]
[1748548987667,0.55,2654.8,2653.6,0.4518198]
[1748548987960,0.55,2654.8,2653.6,2.341986]
[1748548988268,0.55,2654.8,2653.7,1.206]
[1748548989569,1.063,2654.9,2653.7,1.206]
[1748548989731,1.063,2654.9,2654.0,1.8901662]
[1748548989938,0.55,2654.8,2653.7,11.206]
[1748548990138,0.36019206,2655.0,2654.2,1.8901662]
[1748548991516,0.55,2654.9,2654.2,1.206]
[1748548992568,0.55,2654.9,2654.2,1.2595]
[1748548992751,0.36019206,2655.0,2654.2,1.2595]
[1748548993877,0.55,2654.9,2653.8,10.0535]
[1748548994079,0.36019206,2655.0,2653.7,1.206]
[1748548994080,0.55,2654.7,2653.7,1.206]
[1748548994280,0.55,2654.7,2653.3,1.206]
[1748548994281,0.55,2654.5,2653.3,1.206]
[1748548994454,0.55,2654.3,2653.2,1.206]
[1748548995176,0.55,2654.3,2653.3,0.31538169]
[1748548995379,0.55,2654.3,2653.2,1.52138169]
[1748548996249,0.55,2654.3,2653.2,3.41154789]
[1748548996461,0.55,2654.3,2653.2,2.20554789]
[1748548996657,0.55,2654.3,2653.3,1.206]
[1748548997262,0.55,2654.3,2653.4,1.206]
[1748548998080,0.55,2654.3,2653.4,1.186]
[1748549000491,0.55,2654.3,2653.6,1.8901662]
[1748549000697,1.0706,2654.4,2654.0,1.8901662]
[1748549000929,0.36019206,2655.0,2654.0,1.8901662]
[1748549000930,1.0897,2654.7,2654.0,1.8901662]
[1748549001084,0.36019206,2655.0,2654.0,1.8901662]
[1748549001593,0.55,2654.9,2654.0,1.8901662]
[1748549001797,0.36019206,2655.0,2653.7,0.18901662]
[1748549001991,0.36019206,2655.0,2653.7,1.37501662]
[1748549002194,1.0833,2654.8,2653.7,1.186]
[1748549004218,0.55,2654.7,2653.7,1.186]
[1748549004785,0.55,2654.5,2653.6,1.186]
[1748549005905,0.55,2654.5,2653.5,1.186]
[1748549006997,0.55,2654.5,2653.1,10.0]
[1748549007198,0.55,2654.7,2653.0,10.0]
[1748549007538,5.06019206,2655.0,2652.2,0.76775968]
[1748549007539,0.55,2654.1,2653.1,1.186]
[1748549007889,0.55,2654.1,2653.2,0.31613808]
[1748549008485,0.55,2654.1,2653.1,1.186]
[1748549008486,0.55,2654.1,2653.3,0.31613808]
[1748549008944,0.55,2654.1,2653.2,1.50213808]
[1748549009552,0.55,2654.1,2653.2,0.31613808]
[1748549010355,0.55,2654.1,2653.1,1.50213808]
[1748549010708,0.55,2654.1,2653.2,0.31613808]
[1748549011341,0.55,2654.1,2653.1,1.186]
[1748549011342,0.55,2654.1,2653.1,1.50213808]
[1748549011958,5.06019206,2655.0,2653.1,0.31613808]
[1748549011959,0.55,2653.9,2653.1,0.31613808]
[1748549012314,0.55,2653.9,2653.3,0.31613808]
[1748549012819,0.55,2653.9,2653.4,0.31613808]
[1748549013025,1.1233,2654.0,2653.4,0.31613808]
[1748549013708,1.1233,2654.0,2653.5,0.31613808]
[1748549014109,0.55,2654.3,2653.6,0.31613808]
[1748549015855,0.55,2654.3,2653.4,1.186]
[1748549015856,0.55,2654.9,2653.4,0.31613808]
[1748549016051,0.55,2654.6,2653.4,0.31613808]
[1748549016228,0.55,2654.4,2653.4,0.31613808]
[1748549016817,1.1286,2654.6,2653.4,0.31613808]
[1748549017127,0.55,2654.6,2653.4,0.31613808]
[1748549017328,0.55,2654.4,2653.4,0.31613808]
[1748549017518,0.55,2654.0,2653.3,0.31613808]
[1748549017721,0.77332,2654.0,2653.3,0.31613808]
[1748549018151,0.55,2653.8,2653.3,0.31613808]
[1748549018351,0.55,2653.8,2653.1,0.31613808]
[1748549020251,0.55,2653.8,2653.0,0.31613808]
[1748549020965,0.55,2653.8,2653.1,0.31613808]
[1748549022267,0.55,2653.8,2653.2,0.31613808]
[1748549022467,0.55,2653.8,2653.3,0.31613808]
[1748549022669,1.1332,2653.9,2653.3,0.31613808]
[1748549022977,1.1332,2653.9,2653.4,0.31613808]
[1748549023136,1.1332,2653.9,2653.5,0.31613808]
[1748549023528,1.1868,2654.7,2653.5,0.31613808]
[1748549023751,0.55,2654.5,2653.5,0.31613808]
[1748549024063,0.55,2654.5,2653.6,0.31613808]
[1748549024269,0.55,2654.3,2653.6,0.31613808]
[1748549026067,0.55,2654.1,2653.3,0.31613808]
[1748549026735,0.55,2654.1,2653.4,0.31613808]
[1748549029389,1.1868,2654.2,2653.4,0.31613808]
[1748549029701,1.1868,2654.2,2653.2,1.186]
[1748549029702,1.1868,2654.2,2653.5,0.31613808]
[1748549029875,1.1868,2654.2,2653.6,0.31613808]
[1748549033459,1.193,2654.0,2653.6,0.31613808]
[1748549033659,0.55,2653.9,2653.4,0.31613808]
[1748549033853,1.193,2654.0,2653.4,0.31613808]
[1748549034975,0.55,2653.7,2652.4,0.66666667]
[1748549035285,0.7,2653.9,2650.9,0.79223223]
[1748549035286,8.1838,2653.1,2650.9,0.79223223]
[1748549035465,0.55,2651.3,2650.9,0.79223223]
[1748549035735,0.55,2651.3,2650.4,1.23688035]
[1748549035736,0.55,2651.1,2650.4,1.23688035]
[1748549036020,2.11440737,2651.9,2650.4,1.23688035]
[1748549036021,0.55,2650.7,2650.4,1.23688035]
[1748549036543,0.55,2650.7,2649.6,1.196]
[1748549036544,1.1275,2651.7,2650.0,1.2078]
[1748549036667,0.31450553,2651.6,2650.0,1.2078]
[1748549037261,0.31450553,2651.6,2650.1,1.89675934]
[1748549037511,0.31450553,2651.6,2650.2,1.196]
[1748549037811,0.31450553,2651.6,2650.0,1.2078]
[1748549037812,0.31450553,2651.6,2650.3,1.196]
[1748549038168,1.1275,2651.7,2650.1,10.0]
[1748549038367,1.1275,2651.7,2650.2,1.196]
[1748549038368,0.55,2651.6,2650.2,1.196]
[1748549042220,0.55,2651.4,2649.8,1.197]
[1748549042722,0.55,2651.4,2649.7,10.0]
[1748549042946,0.55,2651.4,2649.9,1.197]
[1748549043385,0.55,2651.2,2649.9,1.197]
[1748549043790,0.55,2651.2,2649.6,1.1451]
[1748549043992,0.55,2651.8,2649.7,1.197]
[1748549044190,0.55,2651.3,2649.7,1.43121]
[1748549044381,0.55,2651.1,2649.7,1.43121]
[1748549046380,0.55,2650.9,2649.7,0.23421]
[1748549046586,0.55,2650.7,2649.1,10.0]
[1748549046787,0.55,2650.7,2649.0,1.69548911]
[1748549046788,0.55,2650.7,2649.2,1.197]
[1748549052494,0.55,2650.7,2649.2,3.09375934]
[1748549054348,4.156,2651.5,2649.3,1.197]
[1748549054349,0.55,2650.5,2649.3,1.197]
[1748549054539,1.1744,2650.6,2649.3,1.197]
[1748549055200,1.1744,2650.6,2649.6,1.1894]
[1748549056405,0.55,2650.5,2649.7,1.197]
[1748549058299,0.55,2650.5,2649.0,10.60028911]
[1748549058504,0.55,2650.5,2649.1,1.197]
[1748549059552,0.55,2650.5,2649.1,2.385]
[1748549060403,0.55,2651.4,2649.1,1.188]
[1748549060742,1.2156,2650.9,2649.2,1.197]
[1748549060947,1.2156,2650.7,2649.2,1.197]
[1748549061175,1.7044,2650.4,2649.2,1.197]
[1748549062348,1.1544,2650.2,2649.2,1.197]
[1748549062563,0.55,2650.0,2649.0,0.60028911]
[1748549062741,0.55,2650.6,2649.0,0.60028911]
[1748549063046,0.55,2650.5,2649.0,0.60028911]
[1748549063332,0.55,2650.1,2649.0,0.60028911]
[1748549063530,0.55,2649.9,2649.0,0.60028911]
[1748549067091,4.127,2650.7,2649.0,0.60028911]
[1748549067092,1.1519,2650.7,2649.1,3.03685934]
[1748549067654,0.55,2650.6,2649.3,10.0]
[1748549067859,1.1519,2650.7,2649.3,10.0]
[1748549068078,1.1519,2650.7,2649.4,10.0]
[1748549068374,0.55,2650.6,2649.3,10.0]
[1748549068582,1.1519,2650.7,2649.2,11.1401]
[1748549068963,0.55,2650.6,2649.4,10.0]
[1748549069718,0.55,2650.6,2649.3,10.0]
[1748549070048,0.55,2650.6,2649.2,11.1401]
[1748549070683,0.55,2650.6,2649.2,1.1401]
[1748549071588,0.55,2650.6,2649.2,11.1401]
[1748549072139,0.55,2650.6,2649.3,10.0]
[1748549072560,0.55,2650.6,2649.2,11.1401]
[1748549072883,0.55,2650.6,2649.3,10.0]
[1748549073103,0.55,2650.6,2649.2,11.1401]
[1748549073444,0.55,2650.6,2649.3,10.0]
[1748549074074,0.55,2650.6,2649.2,11.1401]
[1748549074712,0.55,2650.6,2649.3,10.0]
[1748549075583,0.55,2650.4,2649.2,1.1401]
[1748549075784,0.55,2650.4,2649.3,1.16]
[1748549076100,0.55,2650.4,2649.4,0.23001]
[1748549076467,0.55,2651.3,2649.0,0.60028911]
[1748549076682,0.55,2650.9,2649.1,1.16]
[1748549076885,0.55,2650.5,2649.2,10.0]
[1748549077085,0.55,2650.5,2649.1,11.16]
[1748549077668,0.55,2650.5,2649.2,10.0]
[1748549078100,0.55,2650.5,2649.1,11.16]
[1748549078411,0.55,2650.5,2649.2,10.0]
[1748549078570,0.55,2650.5,2649.1,11.16]
[1748549078979,0.55,2650.5,2649.2,10.0]
[1748549079209,0.55,2650.5,2649.1,11.16]
[1748549079615,0.55,2650.5,2649.2,10.0]
[1748549080204,0.55,2650.5,2649.1,1.16]
[1748549080205,0.55,2650.5,2649.1,11.16]
[1748549080632,0.55,2650.5,2649.2,10.0]
[1748549080830,0.55,2650.8,2649.2,10.0]
[1748549081126,0.55,2650.7,2649.2,10.0]
[1748549081288,0.55,2650.3,2649.2,10.0]
[1748549081722,0.55,2650.3,2649.1,11.16]
[1748549082128,0.55,2650.3,2649.2,10.0]
[1748549082724,0.55,2650.3,2649.1,11.16]
[1748549083112,0.55,2650.3,2649.2,10.0]
[1748549083691,0.55,2650.3,2649.1,11.16]
[1748549084620,0.55,2650.3,2649.2,10.0]
[1748549085218,0.55,2650.1,2649.3,1.16]
[1748549089714,1.126,2650.2,2649.4,4.524693]
[1748549089911,1.126,2650.2,2649.4,1.1869]
[1748549090133,1.126,2650.2,2649.5,0.83469]
[1748549097385,0.55,2649.9,2649.5,0.6]
[1748549097594,0.55,2649.7,2649.5,0.6]
[1748549097742,0.55,2650.1,2648.7,0.39744589]
[1748549097945,1.1246,2649.8,2648.7,0.39744589]
[1748549098152,0.55,2649.5,2648.5,0.39744589]
[1748549098355,0.55,2649.3,2648.5,0.39744589]
[1748549098858,0.55,2650.2,2648.5,0.39744589]
[1748549099061,0.55,2650.2,2648.3,1.126]
[1748549099062,0.55,2649.6,2648.3,1.52344589]
[1748549099394,0.55,2649.9,2648.3,1.126]
[1748549099620,0.55,2649.9,2648.0,1.126]
[1748549099816,0.55,2649.6,2648.0,1.126]
[1748549099977,0.55,2649.4,2648.0,1.126]
[1748549100185,0.55,2649.2,2648.0,1.126]
[1748549100429,1.6838,2649.1,2648.0,1.126]
[1748549100974,1.6838,2649.1,2648.2,1.89647264]
[1748549100975,1.1338,2649.1,2648.2,1.89647264]
[1748549101421,1.1338,2649.1,2648.4,1.1208]
[1748549101980,1.1338,2649.1,2648.2,1.89647264]
[1748549101981,1.1338,2649.1,2648.5,10.0]
[1748549102178,1.6838,2649.1,2648.3,1.126]
[1748549102505,1.1338,2649.1,2648.3,1.126]
[1748549102912,1.1338,2649.1,2648.4,10.0]
[1748549104235,1.1338,2649.1,2648.3,1.126]
[1748549104236,1.1232,2649.3,2648.8,10.0]
[1748549105805,1.1232,2649.3,2648.4,0.39744589]
[1748549105806,0.55,2649.2,2648.4,0.39744589]
[1748549106064,1.1232,2649.3,2648.5,1.89647264]
[1748549106983,1.1232,2649.3,2648.9,1.89647264]
[1748549107105,0.55,2649.7,2648.9,1.89647264]
[1748549107106,1.1268,2649.7,2649.2,4.5251753]
[1748549107308,1.1268,2650.0,2649.3,1.89647264]
[1748549107701,1.1268,2650.0,2649.3,6.42064555]
[1748549108846,0.55,2649.9,2649.1,10.0]
[1748549109063,0.55,2649.9,2649.0,0.18964726]
[1748549110267,0.55,2649.9,2649.0,4.71389882]
[1748549110557,1.1268,2650.0,2649.1,4.52425156]
[1748549110714,1.1268,2650.0,2649.2,1.89647264]
[1748549110920,1.1268,2650.0,2649.2,11.89647264]
[1748549111114,1.1268,2650.0,2649.3,10.0]
[1748549111342,1.1268,2650.0,2649.3,4.00718161]
[1748549111616,1.1268,2650.0,2649.3,10.0]
[1748549111938,1.1268,2650.0,2649.2,10.0]
[1748549112137,1.1268,2650.0,2649.3,10.0]
[1748549112713,1.1268,2650.0,2649.2,10.0]
[1748549112914,1.1268,2650.0,2649.4,14.52434919]
[1748549113127,1.1268,2650.0,2649.4,4.52434919]
[1748549113466,1.37144446,2651.1,2649.5,6.42082183]
[1748549113633,1.2073,2651.0,2649.5,6.42082183]
[1748549113836,1.2073,2651.0,2649.7,10.0]
[1748549114144,1.2073,2650.8,2649.7,10.0]
[1748549114455,1.2073,2650.8,2649.8,10.0]
[1748549115288,1.2073,2650.8,2649.7,10.0]
[1748549116385,1.2073,2650.8,2649.6,11.126]
[1748549116883,1.2073,2650.8,2649.9,6.41956811]
[1748549117094,1.2073,2650.8,2650.1,4.52309547]
[1748549117298,1.2073,2650.8,2650.3,1.89647264]
[1748549117592,1.2073,2650.8,2649.9,4.076]
[1748549117593,1.2073,2650.8,2649.9,1.126]
[1748549117896,1.139,2650.6,2649.8,5.201]
[1748549120080,0.55,2650.5,2649.8,10.0]
[1748549120283,0.55,2650.5,2649.5,4.52359648]
[1748549120284,1.139,2650.4,2649.5,10.0]
[1748549120484,0.55,2650.3,2649.4,10.0]
[1748549120692,1.139,2650.2,2649.3,11.52344589]
[1748549121400,0.55,2650.1,2649.3,11.126]
[1748549121605,4.7,2651.2,2649.3,11.126]
[1748549121606,0.55,2649.9,2649.3,1.126]
[1748549121901,0.55,2649.9,2649.0,10.0]
[1748549122070,1.126,2650.9,2648.9,8.54244589]
[1748549122071,0.55,2650.6,2648.9,9.271]
[1748549122270,0.55,2650.2,2648.9,9.271]
[1748549122474,0.55,2650.0,2648.9,9.271]
[1748549122660,8.77,2650.8,2648.9,9.271]
[1748549122661,1.1269,2649.7,2648.9,9.271]
[1748549122858,0.55,2649.6,2648.9,9.271]
[1748549123177,0.55,2649.6,2648.9,1.126]
[1748549123380,0.55,2649.6,2648.5,11.89647264]
[1748549123596,1.1936,2649.3,2648.6,1.126]
[1748549123908,0.55,2649.0,2648.0,2.29391853]
[1748549124064,0.55,2648.8,2648.1,0.34199185]
[1748549124265,0.55,2648.8,2647.9,0.39744589]
[1748549124266,1.1936,2648.7,2647.9,0.39744589]
[1748549124493,1.1936,2648.7,2647.9,10.0]
[1748549125034,1.1936,2648.7,2648.1,10.0]
[1748549125383,1.1936,2648.7,2648.0,10.0]
[1748549125816,1.1936,2648.7,2647.9,10.0]
[1748549126001,0.55,2648.6,2647.9,10.0]
[1748549126330,0.55,2648.5,2647.7,11.126]
[1748549126894,1.126,2649.8,2647.7,1.126]
[1748549126895,0.55,2648.3,2647.7,1.126]
[1748549127195,0.55,2648.3,2647.5,10.0]
[1748549127590,0.55,2649.1,2647.4,10.0]
[1748549127816,5.96547264,2649.9,2647.0,0.39744589]
[1748549127817,0.55,2648.5,2647.0,0.39744589]
[1748549128035,1.127,2649.0,2647.0,0.39744589]
[1748549128036,0.55,2648.2,2647.0,0.39744589]
[1748549128192,0.55,2648.0,2647.0,0.39744589]
[1748549128533,0.55,2648.0,2646.8,1.127]
[1748549128534,0.55,2648.0,2646.8,1.52444589]
[1748549128748,0.55,2648.7,2646.8,1.73001767]
[1748549128890,1.2025,2648.4,2646.8,1.73001767]
[1748549129090,0.55,2648.1,2646.8,1.73001767]
[1748549129291,0.55,2647.7,2646.8,1.73001767]
[1748549129544,0.55,2647.5,2646.8,1.33257178]
[1748549131359,0.55,2647.5,2646.8,0.20557178]
[1748549132570,1.2025,2647.6,2646.8,0.20557178]
[1748549132734,0.19668457,2650.3,2647.2,7.58589056]
[1748549132735,1.1416,2649.2,2647.2,7.58589056]
[1748549132936,1.1416,2649.2,2647.7,1.89647264]
[1748549133718,0.55,2648.9,2647.7,1.89647264]
[1748549134054,1.1416,2648.9,2648.3,4.52692405]
[1748549134762,1.1416,2648.9,2648.3,10.0]
[1748549135415,1.1416,2648.9,2648.4,10.0]
[1748549135821,1.1416,2648.9,2648.3,10.0]
[1748549136119,1.1416,2648.9,2648.1,3.08438963]
[1748549139139,1.1473,2649.2,2648.1,3.08438963]
[1748549142277,1.1473,2649.2,2648.1,7.14138963]
[1748549145792,1.1473,2649.2,2648.5,1.89768963]
[1748549145932,1.1473,2649.2,2648.6,1.31776896]
[1748549146731,1.1473,2649.2,2648.6,0.18976896]
[1748549146975,1.1473,2649.2,2648.3,1.128]
[1748549147771,1.1473,2649.2,2648.4,10.0]
[1748549147975,1.1473,2649.2,2648.6,1.89768963]
[1748549148544,0.877,2650.7,2648.7,1.128]
[1748549148545,1.1953,2650.3,2648.7,1.128]
[1748549148753,1.1953,2650.3,2649.4,1.89768963]
[1748549149069,1.1953,2650.3,2649.5,1.31776896]
[1748549153876,1.1953,2650.3,2649.6,1.127]
[1748549154874,1.1953,2650.3,2649.7,1.127]
[1748549156163,1.1953,2650.3,2649.5,4.24476896]
[1748549156164,4.15828606,2655.7,2653.1,1.89768963]
[1748549156503,4.15828606,2655.7,2651.9,0.141]
[1748549156504,0.223,2654.9,2654.4,6.97811111]
[1748549156789,0.223,2654.9,2651.9,8.145]
[1748549156790,0.223,2654.9,2653.0,0.3772]
[1748549156960,2.59,2655.2,2652.5,1.129695]
[1748549156961,0.2,2654.6,2652.5,1.129695]
[1748549157288,0.2,2654.0,2652.6,10.0]
[1748549157490,0.1061,2654.3,2653.1,1.88861772]
[1748549157702,8.145,2655.5,2652.3,1.2253]
[1748549157703,0.1061,2654.0,2653.0,6.62805229]
[1748549157861,0.1061,2654.0,2653.4,0.15617716]
[1748549158187,0.1061,2654.0,2653.5,0.20561402]
[1748549158391,0.1061,2654.3,2653.6,0.20511205]
[1748549158595,0.1061,2654.3,2653.8,0.11758521]
[1748549158775,0.1061,2654.3,2653.6,0.11758521]
[1748549158950,0.1061,2654.3,2653.7,0.20509123]
[1748549159155,1.3279,2654.3,2653.8,0.20509123]
[1748549159391,1.3279,2654.3,2653.9,0.20465611]
[1748549159594,1.17942053,2654.3,2654.0,0.20465611]
[1748549159763,1.17942053,2654.3,2653.5,2.00620293]
[1748549159964,1.17942053,2654.3,2653.7,0.11758521]
[1748549160170,1.17942053,2654.3,2653.8,0.32225073]
[1748549160368,1.17942053,2654.3,2653.9,0.20463586]
[1748549160694,1.17942053,2654.3,2654.0,0.20471083]
[1748549160869,1.17942053,2654.3,2654.1,0.20471083]
[1748549161195,0.55,2654.2,2653.8,0.11713404]
[1748549161694,1.17942053,2654.3,2653.9,0.20450628]
[1748549161903,0.25234205,2654.2,2653.8,0.11713404]
[1748549162080,0.25234205,2654.2,2653.9,0.2044992]
[1748549162281,1.17942053,2654.3,2654.0,0.2044992]
[1748549162483,1.17942053,2654.3,2653.6,1.88861772]
[1748549162799,1.17942053,2654.3,2653.7,0.20434395]
[1748549163001,1.17942053,2654.3,2653.8,0.20434923]
[1748549163200,1.17942053,2654.3,2653.6,2.00575176]
[1748549163371,1.17942053,2654.3,2653.7,0.20436758]
[1748549163565,1.17942053,2654.3,2653.8,0.20440703]
[1748549163766,1.17942053,2654.3,2653.9,0.20440703]
[1748549163961,1.17942053,2654.3,2654.0,0.20440703]
[1748549164162,1.17942053,2654.3,2654.1,0.20418039]
[1748549164361,1.17942053,2654.3,2654.2,0.20416883]
[1748549164562,1.344,2654.9,2653.6,1.88861772]
[1748549164794,1.2045,2654.8,2653.7,0.20396336]
[1748549165007,0.25485,2654.7,2653.8,0.20396269]
[1748549165311,0.25485,2654.7,2653.6,2.00555365]
[1748549165599,0.55,2654.6,2653.7,0.20373878]
[1748549165801,0.55,2654.6,2653.6,2.00555365]
[1748549165802,0.55,2654.6,2653.8,0.20380066]
[1748549166118,0.55,2654.4,2653.2,0.27311309]
[1748549166323,0.55,2654.4,2653.3,0.20390873]
[1748549166612,0.55,2654.4,2653.4,0.20390873]
[1748549166818,0.55,2654.4,2653.5,0.20390873]